bitfinex-derivatives/quotes_ETHF0:USTF0_20250911
["timestamp","ask_amount","ask_price","bid_price","bid_amount"]
[1757554730762,0.4933,4367.5,4367.4,0.7204]
[1757554731264,0.6922,4367.5,4367.4,0.7204]
[1757554733959,0.5287,4367.5,4367.0,2.35694452]
[1757554734158,0.6922,4367.1,4367.0,2.23144452]
[1757554734359,0.6922,4367.1,4367.0,2.42934452]
[1757554734767,0.6922,4367.1,4367.0,0.7204]
[1757554735071,0.8224,4367.0,4366.9,2.03294452]
[1757554735260,0.3985,4366.7,4366.6,0.1985]
[1757554735460,0.6922,4366.7,4366.6,0.5225]
[1757554736068,0.6922,4366.7,4366.6,0.7204]
[1757554736265,0.3985,4366.6,4366.5,0.1979]
[1757554736468,0.6922,4366.6,4366.5,0.7204]
[1757554737263,0.718,4366.3,4366.2,2.46094452]
[1757554737467,0.718,4366.3,4366.2,0.428]
[1757554737668,0.3177,4366.7,4366.3,0.3254]
[1757554737868,0.5187,4366.7,4366.6,0.7534]
[1757554739369,0.3177,4367.1,4366.7,0.3254]
[1757554739567,0.718,4367.2,4367.1,0.2142]
[1757554739867,0.718,4367.2,4367.1,0.5396]
[1757554740966,0.718,4367.2,4366.5,0.1202]
[1757554741167,0.718,4366.9,4366.8,0.5396]
[1757554742974,0.718,4366.9,4366.8,0.7534]
[1757554747264,0.3177,4366.8,4366.1,0.3254]
[1757554747469,0.201,4366.2,4366.1,0.7534]
[1757554747867,0.3177,4366.4,4366.1,0.428]
[1757554748062,1.90735289,4366.3,4366.2,0.2142]
[1757554748274,0.718,4366.3,4366.2,0.7534]
[1757554754775,0.3177,4366.9,4366.3,0.3254]
[1757554754981,0.201,4366.4,4366.3,0.7534]
[1757554755180,0.5187,4366.4,4366.3,0.7534]
[1757554755381,0.718,4366.4,4366.3,0.7534]
[1757554757287,0.201,4366.4,4366.3,0.7534]
[1757554757480,0.231,4366.8,4366.7,0.3254]
[1757554757682,0.7497,4366.8,4366.7,0.7534]
[1757554757883,0.949,4366.8,4366.7,0.7534]
[1757554764287,0.718,4366.8,4366.7,0.7534]
[1757554764981,0.3177,4367.1,4367.0,0.5482]
[1757554765289,0.201,4367.2,4367.1,0.7534]
[1757554765488,0.5187,4367.2,4367.1,0.7534]
[1757554768094,0.718,4367.2,4367.1,0.7534]
[1757554768391,1.72288471,4367.2,4367.1,0.5396]
[1757554769894,1.72288471,4367.2,4367.1,0.2142]
[1757554770294,1.72288471,4367.2,4367.1,0.527]
[1757554770595,1.72288471,4367.2,4367.1,0.2017]
[1757554770787,1.72288471,4367.2,4367.1,0.7229]
[1757554772890,1.72288471,4367.2,4367.1,0.2017]
[1757554773092,1.72288471,4367.2,4366.5,0.1202]
[1757554773397,0.4275,4366.8,4366.7,0.7229]
[1757554773700,0.7517,4366.8,4366.7,0.7229]
[1757554775799,1.75658471,4366.8,4366.7,0.7229]
[1757554776700,1.43238471,4366.8,4366.2,0.3128]
[1757554776894,0.3242,4366.7,4366.6,0.2017]
[1757554777201,0.7517,4366.7,4366.6,0.5145]
[1757554777492,0.4275,4366.7,4366.1,2.03294452]
[1757554777695,1.13228471,4366.5,4366.4,0.2017]
[1757554777996,1.55978471,4366.5,4366.4,0.5145]
[1757554778198,1.88398471,4366.5,4366.4,0.5145]
[1757554779288,1.55978471,4366.5,4366.1,0.3128]
[1757554779488,0.4516,4366.0,4365.8,2.03294452]
[1757554779688,0.1274,4366.5,4365.8,0.4101]
[1757554779894,0.3242,4366.4,4365.8,0.4101]
[1757554780198,1.55978471,4366.5,4366.4,0.2017]
[1757554780399,1.88398471,4366.5,4366.4,0.2017]
[1757554780692,0.7517,4365.9,4365.8,0.5145]
[1757554781094,0.7517,4365.9,4365.8,0.7229]
[1757554784692,1.75658471,4365.9,4365.8,0.5145]
[1757554784902,1.75658471,4365.9,4365.8,0.2017]
[1757554785301,0.7517,4365.9,4365.8,0.2017]
[1757554786295,0.7517,4365.9,4365.2,2.03294452]
[1757554786500,0.4275,4365.4,4365.3,0.4101]
[1757554786704,0.7517,4365.4,4365.3,0.7229]
[1757554787704,0.7517,4365.4,4365.3,0.2017]
[1757554788299,0.4275,4365.4,4364.7,0.3128]
[1757554788502,0.7517,4365.3,4365.2,0.2017]
[1757554788696,0.7517,4365.3,4365.2,0.5145]
[1757554788892,0.7517,4365.3,4364.7,0.3128]
[1757554789303,0.7517,4365.3,4365.2,0.5145]
[1757554789902,0.2139,4365.4,4365.3,0.7229]
[1757554790607,0.5381,4365.4,4365.3,0.7229]
[1757554790905,0.7517,4365.4,4365.3,0.7229]
[1757554793905,0.3242,4365.7,4365.3,0.4101]
[1757554794107,0.3242,4365.7,4365.6,0.4101]
[1757554794108,0.5381,4365.7,4365.6,0.4101]
[1757554794304,0.5381,4365.7,4365.6,0.7229]
[1757554794701,0.7517,4365.7,4365.6,0.7229]
[1757554796804,0.2139,4365.7,4365.6,0.7229]
[1757554797410,0.3242,4366.0,4365.7,0.3075]
[1757554797712,0.3242,4366.0,4365.9,0.7259]
[1757554797713,0.533,4366.0,4365.9,0.7259]
[1757554798298,0.7451,4366.0,4365.9,0.7259]
[1757554803913,0.3123,4366.3,4366.0,0.4324]
[1757554804109,0.5211,4366.3,4366.2,0.7259]
[1757554804516,0.7332,4366.3,4366.2,0.7259]
[1757554805712,1.00488471,4366.8,4366.2,0.7259]
[1757554805911,0.7332,4366.7,4366.6,0.4184]
[1757554806215,0.7332,4366.7,4366.6,0.7259]
[1757554806814,0.7332,4366.7,4366.6,0.2071]
[1757554808221,0.7332,4366.7,4365.6,0.3075]
[1757554808412,0.2088,4365.7,4365.6,0.95494]
[1757554808611,1.00488471,4366.2,4365.6,0.64744]
[1757554808814,0.2088,4365.8,4365.7,0.7259]
[1757554809816,0.3123,4366.0,4365.7,0.7259]
[1757554810210,0.3123,4366.0,4365.8,0.3075]
[1757554810415,1.13098471,4366.5,4366.0,0.4324]
[1757554810723,1.55188471,4366.5,4366.4,0.7259]
[1757554811114,1.86418471,4366.5,4366.4,0.7259]
[1757554812828,1.86418471,4366.5,4366.4,0.5146]
[1757554813427,1.86418471,4366.5,4365.6,1.00488471]
[1757554813615,0.3123,4366.4,4365.7,0.3075]
[1757554814525,0.5211,4366.4,4366.3,0.2071]
[1757554814824,0.7332,4366.4,4366.3,0.5146]
[1757554815026,0.7332,4366.4,4366.3,0.7259]
[1757554815223,0.2088,4366.4,4366.3,0.7259]
[1757554815524,0.2088,4366.6,4366.5,0.332]
[1757554815726,0.5211,4366.6,4366.5,0.8508]
[1757554816828,0.7332,4367.2,4367.1,0.5146]
[1757554817031,0.9652,4367.2,4367.1,0.5146]
[1757554817223,0.9652,4367.2,4367.1,0.2071]
[1757554817425,0.9652,4367.2,4366.5,0.1249]
[1757554817626,0.9652,4367.2,4366.6,0.3075]
[1757554818131,0.7332,4367.2,4367.1,0.7259]
[1757554821229,0.7332,4367.2,4367.1,0.5146]
[1757554821529,0.7332,4366.4,4366.3,0.5146]
[1757554822528,0.7332,4366.4,4366.3,0.2071]
[1757554822732,0.7332,4366.4,4366.3,0.5146]
[1757554825233,0.232,4366.7,4366.3,0.5146]
[1757554825234,0.232,4366.8,4366.4,0.3075]
[1757554825433,0.9652,4366.8,4366.7,0.7259]
[1757554826732,0.7332,4366.8,4366.7,0.7259]
[1757554829836,0.7332,4366.8,4366.7,0.3075]
[1757554830230,0.7332,4366.8,4366.7,0.523]
[1757554831332,0.5211,4366.8,4366.7,0.523]
[1757554831538,0.232,4367.3,4366.8,0.3199]
[1757554831729,0.9728,4367.3,4367.2,0.426]
[1757554831931,0.7408,4367.3,4367.2,0.7459]
[1757554835436,1.1900956,4367.9,4367.5,0.1176]
[1757554835437,0.3128,4367.7,4367.5,0.1176]
[1757554835641,0.7408,4367.6,4367.5,0.7459]
[1757554837533,0.7408,4367.6,4367.5,0.5354]
[1757554837737,0.9728,4367.6,4367.5,0.5354]
[1757554838341,0.9728,4367.6,4367.5,0.7459]
[1757554838642,0.7408,4368.4,4368.3,0.2155]
[1757554838843,0.9728,4368.4,4368.3,0.5354]
[1757554839936,0.7408,4368.4,4368.3,0.7459]
[1757554840140,0.9728,4368.4,4368.3,0.7459]
[1757554840339,0.7408,4368.4,4368.3,0.7459]
[1757554840645,0.9728,4368.4,4368.3,0.7459]
[1757554842746,0.3128,4368.8,4368.3,0.7459]
[1757554842940,0.428,4368.9,4368.8,0.426]
[1757554843248,0.7408,4368.9,4368.8,0.7459]
[1757554843440,0.3128,4369.2,4368.8,0.426]
[1757554843640,0.4441,4369.1,4369.0,0.5436]
[1757554843836,0.5249,4369.4,4369.3,0.426]
[1757554844041,0.2121,4369.4,4369.3,0.7459]
[1757554846253,0.7569,4369.6,4369.5,0.8635]
[1757554847150,0.428,4369.2,4368.6,0.3199]
[1757554847353,0.5249,4368.7,4368.6,0.7459]
[1757554847553,0.7408,4368.7,4368.6,0.7459]
[1757554850254,0.7408,4368.7,4367.5,0.1176]
[1757554850548,0.7408,4368.7,4368.1,0.3199]
[1757554858248,0.7408,4368.7,4368.6,0.2155]
[1757554858453,0.7408,4368.7,4368.6,0.5339]
[1757554859952,0.7408,4368.7,4368.6,0.7361]
[1757554860358,0.2121,4368.7,4368.6,0.7361]
[1757554860649,1.7319956,4369.5,4369.4,0.2145]
[1757554860864,2.2544956,4369.5,4369.4,0.2145]
[1757554861057,2.2544956,4369.5,4368.5,0.1303]
[1757554861258,2.2544956,4369.5,4368.6,0.3184]
[1757554862863,0.7257,4369.5,4369.4,0.7351]
[1757554870657,0.3095,4369.8,4369.6,0.3184]
[1757554870863,0.5224,4369.8,4369.7,0.7351]
[1757554872069,0.7257,4369.8,4369.7,0.7351]
[1757554876566,1.3157956,4370.5,4369.7,0.4167]
[1757554876567,0.3095,4370.1,4369.7,0.4167]
[1757554876773,0.5224,4369.9,4369.8,0.7351]
[1757554878875,0.3095,4370.4,4369.9,0.3184]
[1757554879070,0.7257,4370.4,4370.3,0.7351]
[1757554879269,0.7257,4370.4,4370.0,0.3184]
[1757554879570,0.4162,4369.8,4369.7,0.3184]
[1757554879771,0.2129,4369.3,4369.2,0.4167]
[1757554879966,0.5224,4369.3,4369.2,0.7351]
[1757554880274,0.5224,4369.3,4369.2,0.96397]
[1757554880773,0.5224,4369.3,4369.2,0.7351]
[1757554882168,0.2129,4369.3,4369.2,0.7351]
[1757554882471,0.1235,4370.0,4369.0,0.1303]
[1757554882472,0.2129,4369.7,4369.6,0.3184]
[1757554882668,0.2129,4369.7,4369.6,0.7351]
[1757554882875,0.5224,4369.7,4369.6,0.7351]
[1757554883878,0.7257,4369.7,4369.6,0.7351]
[1757554884875,0.7257,4369.7,4369.6,0.5329]
[1757554885874,0.7257,4369.7,4369.6,0.7351]
[1757554888472,0.7257,4369.7,4369.6,0.3184]
[1757554888878,0.7257,4369.7,4369.1,0.3039]
[1757554890288,0.7257,4369.7,4369.6,0.5163]
[1757554891274,0.7257,4369.7,4369.6,0.7244]
[1757554892681,0.2129,4369.7,4369.6,0.7244]
[1757554893175,0.5244,4369.7,4369.6,0.7244]
[1757554893571,0.7278,4369.7,4369.6,0.7244]
[1757554899175,0.3115,4369.7,4369.1,0.3039]
[1757554899374,0.722,4369.2,4369.1,0.7244]
[1757554900680,0.2071,4369.2,4369.1,0.7244]
[1757554902076,0.722,4369.2,4369.1,0.7244]
[1757554902482,1.72560888,4369.2,4369.1,0.7244]
[1757554902683,0.8476,4369.0,4368.5,2.84223066]
[1757554902887,1.72560888,4368.6,4368.1,2.33684452]
[1757554903176,0.722,4368.2,4368.1,0.5163]
[1757554903378,0.722,4368.2,4368.1,0.2124]
[1757554903573,0.4105,4367.8,4367.7,0.5163]
[1757554903773,0.722,4367.8,4367.7,0.5163]
[1757554903981,0.722,4367.8,4367.7,0.7244]
[1757554904369,0.3115,4368.4,4367.8,0.3039]
[1757554904569,0.4105,4368.9,4368.8,0.4205]
[1757554904879,0.722,4368.9,4368.8,0.7244]
[1757554906583,0.2071,4369.0,4368.9,0.7244]
[1757554906985,0.5186,4369.0,4368.9,0.7244]
[1757554907492,0.722,4369.0,4368.9,0.7244]
[1757554910479,0.722,4368.1,4368.0,0.8541]
[1757554912882,0.722,4368.1,4368.0,0.7244]
[1757554913088,0.4105,4367.7,4367.6,0.7244]
[1757554913282,0.722,4367.7,4367.6,0.7244]
[1757554913785,0.722,4367.7,4367.3,0.3039]
[1757554914083,0.722,4367.7,4366.9,1.00360888]
[1757554914295,0.722,4367.7,4367.1,0.3039]
[1757554914788,0.722,4367.7,4367.6,0.2124]
[1757554915780,0.722,4367.4,4366.6,0.3039]
[1757554915985,0.722,4367.4,4367.3,0.7244]
[1757554918478,1.00360888,4367.8,4367.3,0.7244]
[1757554918683,0.7309,4367.9,4367.8,0.5042]
[1757554918987,0.7309,4367.9,4367.8,0.7138]
[1757554919486,0.3155,4368.3,4367.8,1.71740888]
[1757554919695,0.5215,4368.3,4368.2,0.4137]
[1757554919879,0.7309,4368.3,4368.2,0.2041]
[1757554920082,0.7309,4368.3,4368.2,0.5042]
[1757554920283,0.7309,4368.3,4368.2,0.7138]
[1757554925390,0.3155,4368.7,4368.3,0.3001]
[1757554925585,0.3155,4368.7,4368.0,0.1227]
[1757554925586,0.5215,4368.7,4368.6,0.7138]
[1757554925781,0.7309,4368.7,4368.6,0.7138]
[1757554926288,0.7309,4368.7,4368.1,0.3001]
[1757554926489,1.00360888,4368.6,4368.5,0.2041]
[1757554926794,1.73450888,4368.6,4368.5,0.5042]
[1757554929595,1.73450888,4368.6,4368.5,0.7138]
[1757554929894,0.7309,4368.6,4368.5,0.7138]
[1757554930491,0.7309,4368.6,4368.5,0.8365]
[1757554930794,0.5215,4369.2,4369.1,0.7138]
[1757554930992,1.23560888,4369.5,4369.1,0.7138]
[1757554931187,33.4905,4369.3,4369.2,0.7138]
[1757554932396,33.175,4369.3,4369.2,0.7138]
[1757554932599,0.206,4369.3,4369.2,0.7138]
[1757554932795,0.3155,4369.6,4369.2,0.7138]
[1757554933097,0.7309,4370.0,4369.9,0.7138]
[1757554933593,0.9629,4370.4,4370.3,0.2041]
[1757554933800,0.9629,4370.4,4370.3,0.7138]
[1757554934204,0.9629,4370.4,4370.3,0.2041]
[1757554934391,0.9629,4370.4,4370.0,0.3001]
[1757554934595,0.9629,4370.4,4370.1,0.3001]
[1757554935796,0.6474,4370.4,4369.6,0.3001]
[1757554936004,0.7309,4370.3,4370.2,0.5042]
[1757554938812,0.7309,4370.3,4369.5,1.12630888]
[1757554939009,0.7309,4370.2,4370.1,0.2041]
[1757554939217,0.7309,4370.2,4370.1,0.5042]
[1757554941418,0.7309,4370.2,4370.1,0.7138]
[1757554945023,0.7309,4370.2,4370.1,0.5042]
[1757554945219,0.7309,4369.9,4369.1,0.3001]
[1757554945423,0.1205,4370.0,4369.1,0.3001]
[1757554945424,0.206,4369.2,4369.1,0.7138]
[1757554945722,0.7309,4369.2,4369.1,0.7138]
[1757554946619,0.7309,4369.2,4368.7,0.3001]
[1757554946921,0.7309,4369.2,4368.6,0.3001]
[1757554949116,0.7309,4369.2,4369.1,0.2041]
[1757554949322,0.7309,4369.2,4369.1,0.5245]
[1757554950224,0.7309,4369.2,4368.6,0.3204]
[1757554950420,1.00360888,4369.1,4368.6,0.3204]
[1757554950624,0.7281,4368.7,4368.6,0.5357]
[1757554952822,0.7281,4368.7,4368.6,0.7455]
[1757554957124,0.7281,4368.7,4367.7,1.1890673]
[1757554957323,0.7281,4368.3,4368.2,0.7455]
[1757554957628,0.1245,4369.0,4368.2,0.4251]
[1757554957830,0.5253,4368.4,4368.3,0.7455]
[1757554958129,0.2015,4368.4,4368.3,0.7455]
[1757554959221,0.5253,4368.4,4368.3,0.7455]
[1757554962227,0.3238,4368.9,4368.4,0.3204]
[1757554962426,0.4693,4369.2,4368.6,0.3204]
[1757554962624,0.7281,4369.2,4369.1,0.5357]
[1757554962835,0.7281,4369.2,4369.1,0.2153]
[1757554964630,0.4043,4368.9,4368.8,0.3204]
[1757554964835,0.7281,4368.9,4368.1,0.3204]
[1757554965127,0.95701,4368.9,4368.1,0.3204]
[1757554965328,0.7281,4368.2,4368.1,0.5357]
[1757554965535,0.7281,4368.2,4368.1,0.7455]
[1757554967729,0.7281,4368.2,4368.1,0.2153]
[1757554968136,0.7281,4368.2,4368.1,0.5357]
[1757554975235,0.7281,4368.2,4367.6,0.3204]
[1757554975537,0.7281,4368.2,4368.1,0.2153]
[1757554975737,0.7281,4368.2,4368.1,0.5357]
[1757554978536,0.7281,4368.2,4368.1,0.7455]
[1757554980539,0.3041,4368.5,4368.1,0.7455]
[1757554980837,0.7232,4368.7,4368.6,0.2048]
[1757554981139,0.7232,4368.7,4368.1,0.3089]
[1757554985637,0.7232,4367.7,4367.6,0.7261]
[1757554985843,0.7232,4367.7,4367.6,0.95503]
[1757554986036,0.7232,4367.7,4367.6,0.7261]
[1757554986236,0.2067,4367.7,4367.6,0.7261]
[1757554987933,0.3041,4367.9,4367.6,0.7261]
[1757554988135,0.5108,4368.2,4368.1,0.4172]
[1757554988340,0.5108,4368.2,4368.1,0.7261]
[1757554988637,0.7232,4368.2,4368.1,0.7261]
[1757554990640,0.4191,4369.0,4368.9,0.7261]
[1757554991142,0.7232,4369.0,4368.9,0.7261]
[1757554993841,33.9272,4369.5,4369.4,0.7261]
[1757554994144,33.6962,4369.5,4369.4,0.7261]
[1757554995047,33.8187,4369.5,4369.4,0.7261]
[1757554995238,33.8187,4369.5,4369.4,0.5137]
[1757554995439,33.8187,4369.5,4369.4,0.2048]
[1757554997040,33.8187,4369.5,4369.4,0.5137]
[1757554997350,1.23294298,4370.8,4369.0,0.1202]
[1757554997351,0.18166587,4370.4,4369.5,0.1202]
[1757554997544,1.29215016,4370.3,4370.2,0.2048]
[1757554997742,0.7232,4370.3,4370.2,0.7261]
[1757554998046,0.7232,4370.3,4369.9,0.3089]
[1757554998240,0.7232,4370.3,4369.6,0.3089]
[1757554999047,0.7232,4370.3,4370.2,0.2048]
[1757554999247,0.7232,4370.3,4370.2,0.5137]
[1757555003249,0.7232,4370.3,4370.2,0.2048]
[1757555004051,0.7232,4370.3,4370.2,0.5137]
[1757555005450,0.7232,4370.3,4370.2,0.2048]
[1757555005653,0.9542,4370.3,4370.2,0.2048]
[1757555006949,0.2063,4369.2,4369.1,40.1]
[1757555007157,0.7254,4369.2,4369.1,0.4181]
[1757555009052,0.7254,4369.2,4369.1,0.7136]
[1757555012454,0.524,4369.2,4369.1,0.7136]
[1757555015055,0.7254,4369.2,4369.1,0.7136]
[1757555015254,0.1227,4369.0,4368.7,0.2955]
[1757555015458,0.7254,4368.8,4368.7,0.7136]
[1757555020059,0.1227,4369.5,4368.8,0.2955]
[1757555020060,0.3177,4369.4,4368.8,0.2955]
[1757555020363,0.3177,4369.4,4368.6,1.00369907]
[1757555020364,0.7254,4369.4,4369.3,0.2085]
[1757555021256,0.7254,4369.4,4369.0,0.2955]
[1757555021460,0.7254,4369.4,4368.6,1.00369907]
[1757555021662,0.2063,4368.8,4368.7,0.7136]
[1757555021960,0.524,4368.8,4368.7,0.7136]
[1757555022456,0.7254,4368.8,4368.7,0.7136]
[1757555022662,0.7254,4368.8,4368.7,0.2085]
[1757555023656,0.7254,4368.8,4368.7,0.504]
[1757555023959,0.7254,4368.8,4368.7,0.7136]
[1757555025765,0.7254,4368.8,4368.7,0.2085]
[1757555027658,0.7254,4368.8,4368.7,0.7136]
[1757555033060,0.3177,4368.8,4368.7,0.7136]
[1757555034069,0.1227,4369.5,4368.8,0.2955]
[1757555034261,0.2063,4368.9,4368.8,0.504]
[1757555034469,0.7254,4368.9,4368.8,0.4181]
[1757555035670,0.7254,4368.9,4368.5,0.2955]
[1757555035872,0.5304,4368.5,4368.4,2.53694452]
[1757555036170,0.8481,4368.5,4368.4,0.2085]
[1757555038463,0.8481,4368.5,4368.4,0.7175]
[1757555039570,0.3259,4369.4,4368.8,0.4266]
[1757555039766,0.1227,4369.5,4368.8,0.4266]
[1757555039767,0.1227,4369.5,4368.9,0.2945]
[1757555039974,0.7243,4369.4,4369.3,0.2121]
[1757555040765,0.12,4369.0,4368.3,2.03294452]
[1757555041071,0.526,4368.5,4368.4,0.7211]
[1757555041576,0.3259,4368.5,4368.4,0.7211]
[1757555041876,0.7243,4368.9,4368.8,0.7211]
[1757555042768,0.1227,4369.5,4368.8,0.7211]
[1757555043078,0.7243,4369.4,4369.3,0.4266]
[1757555043269,0.7243,4369.4,4369.3,0.7211]
[1757555043971,0.7243,4369.4,4368.9,0.2945]
[1757555044173,0.8443,4369.0,4368.9,0.5066]
[1757555044374,0.8443,4369.0,4368.9,0.7211]
[1757555045373,0.8443,4369.0,4368.4,2.03294452]
[1757555045579,0.8443,4368.5,4368.4,0.2121]
[1757555045974,0.8443,4368.5,4368.4,0.5066]
[1757555046279,0.8443,4368.5,4368.4,0.7211]
[1757555051384,0.8443,4368.5,4368.4,0.2121]
[1757555051580,0.7243,4368.3,4368.2,0.4431]
[1757555052183,0.7243,4368.3,4368.2,0.7376]
[1757555055192,0.7243,4368.3,4368.2,0.4431]
[1757555055592,0.7243,4368.3,4368.2,0.2121]
[1757555056288,0.8443,4368.0,4367.9,2.53954452]
[1757555056493,0.8443,4368.0,4367.9,2.75404452]
[1757555061100,0.7243,4368.0,4367.9,2.75404452]
[1757555064302,0.7243,4368.0,4367.9,0.7211]
[1757555065100,0.3259,4367.9,4367.8,2.03294452]
[1757555065403,0.526,4367.9,4367.8,0.7211]
[1757555066192,0.3984,4367.9,4367.8,0.2121]
[1757555066703,0.7243,4367.9,4367.8,0.2121]
[1757555068496,0.7243,4367.9,4367.8,0.5207]
[1757555068803,0.7243,4367.9,4367.8,0.7175]
[1757555087913,0.526,4367.9,4367.8,0.7175]
[1757555089018,0.725,4367.9,4367.8,0.7175]
[1757555089809,0.725,4367.9,4367.8,0.4089]
[1757555090117,0.725,4367.9,4367.8,0.7175]
[1757555096021,0.725,4367.9,4367.7,2.03294452]
[1757555096216,0.2964,4367.8,4367.7,2.03294452]
[1757555096423,0.6998,4367.8,4367.7,2.24414452]
[1757555096721,0.6998,4367.8,4367.7,2.74954452]
[1757555098123,0.6998,4367.8,4367.7,2.44094452]
[1757555098315,0.6998,4367.8,4367.7,2.73714452]
[1757555100623,0.4034,4367.8,4367.4,2.26394452]
[1757555100819,0.8317,4367.5,4367.4,0.4326]
[1757555101014,0.8317,4367.5,4367.4,0.7288]
[1757555103124,0.5458,4368.0,4367.9,0.4041]
[1757555103328,0.5458,4368.0,4367.9,0.7003]
[1757555103713,0.714,4368.0,4367.9,0.7003]
[1757555105826,0.8317,4368.0,4367.9,0.7003]
[1757555106027,0.8317,4368.0,4367.9,0.2016]
[1757555106526,0.8317,4368.0,4367.6,0.2962]
[1757555107226,0.8317,4368.0,4367.4,0.231]
[1757555107426,0.4164,4367.9,4367.8,0.2016]
[1757555107628,0.714,4367.9,4367.8,0.2016]
[1757555108731,0.714,4367.9,4367.5,0.2962]
[1757555109137,0.714,4367.9,4367.4,0.231]
[1757555109325,0.8317,4367.5,4367.4,0.7288]
[1757555111630,0.4164,4367.3,4366.9,2.03294452]
[1757555111826,0.5341,4367.0,4366.9,2.23454452]
[1757555112130,0.8317,4367.0,4366.9,2.23454452]
[1757555112331,0.8317,4367.0,4366.9,0.7003]
[1757555112528,0.2976,4367.4,4367.3,0.4041]
[1757555112722,0.714,4367.9,4367.8,0.4041]
[1757555112922,0.714,4367.9,4367.8,0.7003]
[1757555115229,0.5112,4367.9,4367.8,0.7003]
[1757555116235,0.714,4367.9,4367.8,0.7003]
[1757555118840,0.5112,4367.9,4367.8,0.7003]
[1757555123224,0.714,4367.9,4367.8,0.7003]
[1757555125131,0.714,4367.9,4367.8,0.4041]
[1757555125833,0.714,4367.9,4367.8,0.7003]
[1757555132145,0.12,4368.5,4367.8,0.7003]
[1757555132346,0.7312,4368.4,4368.3,0.7159]
[1757555132544,0.7312,4368.4,4368.3,0.4075]
[1757555132845,0.7312,4368.4,4368.3,0.1988]
[1757555133851,0.7312,4368.4,4368.1,0.3084]
[1757555140947,0.3055,4368.3,4367.7,0.3084]
[1757555141145,1.12424735,4368.5,4367.7,0.3084]
[1757555141146,0.5172,4367.8,4367.7,0.7159]
[1757555147950,0.3055,4368.4,4367.8,0.3084]
[1757555148250,0.8489,4369.0,4368.9,0.1988]
[1757555150549,0.8489,4369.0,4368.4,0.3084]
[1757555153460,0.5172,4368.1,4368.0,1.31264735]
[1757555153656,0.7312,4368.1,4368.0,7.22614735]
[1757555154257,0.5172,4368.1,4368.0,7.22614735]
[1757555156757,0.1237,4368.5,4368.0,7.34504735]
[1757555156959,0.5554,4368.5,4368.4,0.3988]
[1757555157256,0.5554,4368.5,4368.4,0.6993]
[1757555157459,0.8649,4368.5,4368.4,0.6993]
[1757555160263,0.5248,4368.5,4368.4,0.6993]
[1757555161063,0.7412,4368.5,4368.4,0.6993]
[1757555161263,0.8611,4368.5,4368.4,0.6993]
[1757555164266,0.8611,4368.5,4368.3,0.231]
[1757555164660,0.8611,4368.5,4367.9,2.33344452]
[1757555164661,0.1199,4368.0,4367.9,2.03294452]
[1757555164860,0.8611,4368.0,4367.9,0.231]
[1757555173170,0.8611,4368.0,4367.9,0.4276]
[1757555174775,0.8611,4368.0,4367.9,0.231]
[1757555179174,0.3095,4367.9,4367.5,2.03294452]
[1757555179374,0.4317,4367.2,4367.1,2.03294452]
[1757555179560,0.7412,4367.2,4367.1,0.1966]
[1757555181767,0.7412,4367.2,4367.1,0.6993]
[1757555186381,0.7412,4367.2,4367.1,1.70354735]
[1757555187479,0.5248,4367.2,4367.1,1.70354735]
[1757555189085,0.5248,4367.2,4367.1,1.93454735]
[1757555190583,0.5342,4367.9,4367.8,0.7225]
[1757555190773,0.5342,4367.9,4367.8,1.72674735]
[1757555191881,0.2155,4368.0,4367.9,0.7225]
[1757555192183,0.5342,4368.0,4367.9,0.7225]
[1757555192373,0.7484,4368.0,4367.9,0.7225]
[1757555193672,0.8721,4368.0,4367.9,0.7225]
[1757555201487,0.7484,4368.5,4368.4,0.7225]
[1757555203378,0.8721,4368.5,4368.4,0.7225]
[1757555203985,0.8721,4368.5,4368.0,0.5318]
[1757555204186,0.3187,4368.4,4368.0,0.5318]
[1757555204491,0.7484,4368.1,4368.0,0.9535]
[1757555211892,0.7484,4367.9,4367.8,2.53974452]
[1757555212097,0.5342,4367.9,4367.8,0.7225]
[1757555212285,0.3187,4367.9,4367.8,0.7225]
[1757555214293,0.5342,4367.9,4367.8,0.7225]
[1757555219998,0.7484,4367.9,4367.8,0.4217]
[1757555220396,0.7484,4367.9,4367.8,0.7317]
[1757555223500,0.7484,4367.9,4367.8,0.9627]
[1757555223794,0.7484,4367.9,4367.8,0.6527]
[1757555223999,0.7484,4367.9,4367.8,0.231]
[1757555224599,0.7484,4367.9,4367.8,0.4419]
[1757555225495,0.3004,4367.8,4367.7,2.26394452]
[1757555225699,0.7178,4367.8,4367.7,2.26394452]
[1757555225899,0.7178,4367.8,4367.7,0.231]
[1757555229196,0.7178,4367.8,4367.7,0.4419]
[1757555231804,0.7178,4367.8,4367.7,0.967]
[1757555232399,0.7178,4367.8,4367.7,0.657]
[1757555233808,0.7178,4367.8,4367.7,0.4419]
[1757555234907,0.7178,4367.8,4367.7,0.231]
[1757555237002,0.7178,4367.8,4367.7,0.4419]
[1757555238197,0.7178,4367.8,4367.7,0.7519]
[1757555238401,0.7178,4367.8,4367.7,0.967]
[1757555239309,0.7178,4367.8,4367.7,0.657]
[1757555240910,0.7178,4367.8,4367.7,0.967]
[1757555242408,0.512,4368.4,4368.3,0.2109]
[1757555242612,0.7178,4368.4,4368.3,0.2109]
[1757555244914,0.7178,4368.4,4368.0,0.31]
[1757555251914,0.1303,4368.0,4367.7,2.26394452]
[1757555252123,0.7161,4367.8,4367.7,0.231]